Cogmind - Beta 16.1 @@@ ROGUE MODE // 2026.03.08 @ 21:30:50 Player: TheSkyeDoctor Result: Destroyed by G-67 Veteran with Field Laser Performance ------------- Evolutions (6) 3000 Regions Visited (9) 1800 Robots Destroyed (53) 265 Value Destroyed (1890) 1890 Prototype IDs (0) 0 Alien Tech Used (0) 0 Bonus (1915) 1915 TOTAL SCORE: 8870 Bonus ------- Follower Combat Kills 1183 Registered with UFD 300 Met Optimus in HQ 500 Friendly Fire -68 Cogmind --------- Core Integrity 0/1150 Matter 300/300 Energy 99/100 System Corruption 0% Temperature Cool (12) Movement Core (50) Location -4/Factory Parts ------- > --- POWER (1) -------- (None) > --- PROPULSION (4) --- (None) > --- UTILITY (11) ----- Improved Targeting Computer Improved Corruption Screen > --- WEAPON (3) ------- (None) > --- INVENTORY (5) ---- Neutrino Core Light Antimatter Reactor Light Particle Reactor Peak State ------------ > --- POWER ------------ Neutrino Core > --- PROPULSION ------- Wheel > --- UTILITY ---------- Advanced Heat Sink Improved Trap Scanner Improved Targeting Computer Microactuators Improved Medium Armor Plating Damper Plating Scrapoid Pod > --- WEAPON ----------- Improved Arc Projector Advanced Plasma Cannon Phasing Sabre > --- INVENTORY -------- Light Antimatter Reactor [Rating: 81] Favorites ----------- Power Ion Engine Engine Ion Engine Power Core Micro Nuclear Core Propulsion Wheel Treads Light Treads Wheel Wheel Utility Humpback Device Improved Heat Sink Storage Humpback Processor Improved Targeting Computer Protection Layered Medium Armor Plating Weapon Medium Laser Energy Gun Medium Laser Energy Cannon Advanced Plasma Cannon Ballistic Gun Flak Gun Ballistic Cannon Advanced Assault Cannon Launcher Rocket Launcher Impact Weapon Flail Slashing Weapon Phasing Sabre Special Melee Weapon Improved Datajack Build | -11 -10 -10 -9 -6 -6 -5 -5 -5 -4 ------- Run | Yrd Mat Sub Scr Fac Ext Fac Was Fac Fac Slots Evolved 12 | . . . . 8 . 2 . . 2 Power . | . . . . . . . . . . Propulsion 2 | . . . . 2 . . . . . Utility 9 | . . . . 5 . 2 . . 2 Weapon 1 | . . . . 1 . . . . . Parts Attached 56 | 9 . . 4 9 18 1 1 4 10 Power 6 | 2 . . . . 3 . . . 1 Engine 2 | 2 . . . . . . . . . Core 4 | . . . . . 3 . . . 1 Reactor . | . . . . . . . . . . Propulsion 11 | 2 . . 2 2 2 . . 1 2 Treads 3 | 2 . . . . . . . 1 . Leg . | . . . . . . . . . . Wheel 8 | . . . 2 2 2 . . . 2 Hover . | . . . . . . . . . . Flight . | . . . . . . . . . . Utility 22 | 2 . . 1 4 7 1 . 1 6 Device 8 | 1 . . . 3 . 1 . 1 2 Storage 2 | 1 . . 1 . . . . . . Processor 2 | . . . . . 1 . . . 1 Hackware . | . . . . . . . . . . Protection 10 | . . . . 1 6 . . . 3 Artifact . | . . . . . . . . . . Weapon 17 | 3 . . 1 3 6 . 1 2 1 Energy Gun 4 | 2 . . . . 1 . . . 1 Energy Cannon 3 | . . . . 1 . . 1 1 . Ballistic Gun 2 | 1 . . . . 1 . . . . Ballistic Cannon 1 | . . . . 1 . . . . . Launcher 2 | . . . . . 2 . . . . Special Weapon . | . . . . . . . . . . Impact Weapon 1 | . . . . 1 . . . . . Slashing Weapon 3 | . . . 1 . 1 . . 1 . Piercing Weapon . | . . . . . . . . . . Special Melee Weapon 1 | . . . . . 1 . . . . Unidentified Prototypes . | . . . . . . . . . . Corrupted Parts 1 | . . . . . 1 . . . . System Corruption 7 | . . . . . 7 . . . . Parts Lost 39 | . . . . . 15 . . 11 13 Power 2 | . . . . . 2 . . . . Propulsion 9 | . . . . . 3 . . 3 3 Utility 18 | . . . . . 6 . . 5 7 Weapon 10 | . . . . . 4 . . 3 3 Highest Loss Streak 11 | . . . . . 6 . . 11 11 To Critical Strikes . | . . . . . . . . . . Average Backups 18 | 2 4 5 20 22 22 22 26 25 1 Power 2 | . 1 1 1 1 2 4 4 4 1 Propulsion 4 | 1 2 2 5 6 4 4 4 3 . Utility 5 | . 1 2 7 7 5 5 7 8 . Weapon 5 | . . . 5 6 7 7 8 7 . Tool/Special . | . . . . . . . . . . Unused Backups 14 | . . . . . . . . 12 2 Power 4 | . . . . . . . . 2 2 Propulsion 1 | . . . . . . . . 1 . Utility 7 | . . . . . . . . 7 . Weapon 1 | . . . . . . . . 1 . Tool/Special 1 | . . . . . . . . 1 . Average Slot Usage (%) 81 | . 100 100 84 84 80 82 82 80 45 Engine 6 | . 14 14 14 6 . . . . . Core 2 | . . . . . 5 5 5 5 4 Treads 2 | . 28 28 . . . . . . . Wheel 19 | . . . 27 25 20 17 17 16 4 Device 9 | . 14 14 . 19 14 11 11 11 13 Storage 8 | . 14 14 14 6 6 5 5 4 . Processor 2 | . . . . . 3 5 5 5 6 Protection 5 | . . . . 5 7 17 17 15 5 Energy Gun 8 | . 14 14 14 . 6 . . . 1 Energy Cannon 1 | . . . . 5 . . 3 5 4 Ballistic Gun 5 | . 14 14 7 . 3 5 5 4 . Slashing Weapon 3 | . . . 5 . 2 1 5 5 3 Special Melee Weapon 1 | . . . . . 2 3 . . . Peak Build Rating 81 | 7 7 8 14 39 51 59 66 68 81 Average Rating 32 | 5 6 7 11 38 45 56 63 64 55 On Entrance 28 | . 7 7 8 14 39 44 59 66 39 Avg Prop Armor Cover (%) 8 | . . . . . . . . 8 . Naked Turns . | . . . . . . . . . . Heaviest Build 257 | 15 15 15 209 232 257 250 255 255 98 Greatest Support 56 | 40 40 40 40 44 56 44 44 44 26 Greatest Overweight (x) 10 | . . . 10 5 6 5 5 5 9 Average Overweight (x) 5 | . . . 9 5 4 5 5 4 3 Largest Inventory Capacity 35 | 8 8 8 35 35 35 35 35 35 5 Average Capacity 30 | 7 8 8 34 35 35 35 35 31 5 Most Carried 32 | 4 4 7 30 29 27 24 31 32 3 Average Carried 19 | 2 4 6 21 23 23 22 28 28 1 Final Capacity 35 | 8 8 8 35 35 35 35 35 5 5 Final Carried 31 | 4 4 7 30 24 24 24 31 5 3 Scrap Suit Usage (%) 30 | . . . . 99 93 . . . . Parts Cannibalized 19 | . . . . . 19 . . . . Class Distribution -------------------- 62% | Hauler-Mutant 20% | Commander-Mutant 16% | Mutant Dominant Class ---------------- Mutant | -10/Materials Mutant | -10/Subcaves Hauler-Mutant | -9/Scraptown Hauler-Mutant | -6/Factory Hauler-Mutant | -6/Extension Commander-Mutant | -5/Factory Commander-Mutant | -5/Waste Commander-Mutant | -5/Factory Mutant | -4/Factory Resources | -11 -10 -10 -9 -6 -6 -5 -5 -5 -4 ----------- Run | Yrd Mat Sub Scr Fac Ext Fac Was Fac Fac Matter Collected 1976 | 308 34 3 53 22 670 425 298 103 60 Remotely . | . . . . . . . . . . Salvage Created 2987 | 110 53 . . 22 1660 101 463 188 390 Parts 119 | 7 8 . . . 72 4 4 9 15 Haulers Intercepted . | . . . . . . . . . . Recyclers Shooed 1 | . . . . . . 1 . . . Parts Field Recycled . | . . . . . . . . . . Retrieved Matter . | . . . . . . . . . . Parts Self-Destructed 8 | . . 8 . . . . . . . Prevented . | . . . . . . . . . . Parts Restored . | . . . . . . . . . . Kills | -11 -10 -10 -9 -6 -6 -5 -5 -5 -4 ------- Run | Yrd Mat Sub Scr Fac Ext Fac Was Fac Fac Combat Hostiles Destroyed 33 | . 2 . . . 17 2 2 4 6 Melee 9 | . . . . . 4 1 . 1 3 Guns 10 | . 2 . . . 7 . . 1 . Cannons 9 | . . . . . 5 . . 2 2 AOE 4 | . . . . . 1 1 2 . . Classes Destroyed 13 | 2 2 . . 1 6 . 1 . 1 Worker 2 | . 2 . . . . . . . . Builder 5 | . . . . . 3 1 . . 1 Tunneler 4 | 3 . . . . 1 . . . . Recycler 5 | 1 . . . . 4 . . . . Mechanic 1 | . . . . . . . . . 1 Operator 1 | . . . . 1 . . . . . Watcher 1 | . . . . . 1 . . . . Swarmer 5 | . 2 . . . . . . 1 2 Grunt 11 | . . . . . 6 1 . 2 2 Duelist 2 | . . . . . 1 . . . 1 Sentry 10 | . . . . . 9 . . . 1 Programmer 3 | . . . . . 1 1 . 1 . Compactor 2 | . . . . . . . 2 . . Butcher 1 | . . . . . 1 . . . . Best Kill Streak 3 | 3 2 . . 1 3 1 1 2 2 Combat Bots Only 3 | . 2 . . . 3 1 1 2 2 Max Kills in Single Turn 1 | 1 1 . . 1 1 1 1 1 1 Gunslinging . | . . . . . . . . . . Exploded 1 | . . . . . 1 1 1 . . Melee 1 | . . . . . 1 1 . 1 1 Uniques/NPCs Destroyed . | . . . . . . . . . . Combat | -11 -10 -10 -9 -6 -6 -5 -5 -5 -4 -------- Run | Yrd Mat Sub Scr Fac Ext Fac Was Fac Fac Hostile Shots Fired 751 | . 39 1 . . 417 5 . 77 212 Missed 250 | . 17 . . . 143 1 . 26 63 Hits 501 | . 22 1 . . 274 4 . 51 149 Melee 5 | . . . . . . . . . 5 Projectile 496 | . 22 1 . . 274 4 . 51 144 AOE 1 | . . . . . . . . 1 . Critical Strikes 18 | . 2 . . . 2 1 . 1 12 Actively Blocked 1 | . . . . . . . . . 1 Damage Taken 7419 | . 328 10 . . 2611 145 . 1135 3190 Core 1694 | . 123 . . . 217 . . 191 1163 Absorbed by Shields 589 | . . . . . 589 . . . . Redirected to Shielding 107 | . . . . . . . . . 107 Ignored by Resistances 185 | . . . . . 160 6 . 19 . Regen/Repaired (Parts) 151 | . . . . . 151 . . . . Core Remaining (%) 76 | 100 . . 50 . 74 . . 80 . Volleys Fired 122 | 6 8 2 . . 70 2 12 10 12 Largest 2 | 2 2 2 . . 2 2 2 2 2 Hottest 179 | 70 70 70 . . 149 61 126 179 163 Shots Fired 218 | 12 16 4 . . 123 4 23 19 17 Gun 131 | 12 16 4 . . 73 2 11 8 5 Cannon 60 | . . . . . 35 . 2 11 12 Launcher 27 | . . . . . 15 2 10 . . Special . | . . . . . . . . . . Kinetic 77 | 6 8 2 . . 40 2 11 8 . Thermal 95 | 6 8 2 . . 55 . 2 10 12 Explosive 16 | . . . . . 4 2 10 . . Electromagnetic 30 | . . . . . 24 . . 1 5 Robot Hit Streak 21 | 3 11 4 . . 21 2 7 8 9 Robot Miss Streak 9 | 1 1 . . . 9 3 3 8 1 Penetration Max . | . . . . . . . . . . Secondary Targets 1 | . 1 . . . . . . . . Max Gunslinging Chain 1 | . 1 . . . . . . . . Shots Hit Robots 254 | 8 10 2 . 1 155 14 20 14 30 Core Hits 138 | 5 5 . . . 92 6 7 7 16 Critical Kills 1 | . . . . . 1 . . . . Critical Parts Destroyed 1 | . . . . . 1 . . . . Critical Strikes 8 | 1 . . . . 4 . . . 3 Burn 1 | 1 . . . . . . . . . Smash 2 | . . . . . 2 . . . . Sever 5 | . . . . . 2 . . . 3 Melee Attacks 106 | . . . 2 3 65 13 . 2 21 Impact 15 | . . . . 3 12 . . . . Slashing 47 | . . . 2 . 16 6 . 2 21 Piercing . | . . . . . . . . . . Sneak Attacks 51 | . . . . . 41 8 . . 2 Combat Hostiles . | . . . . . . . . . . Follow-up Attacks . | . . . . . . . . . . Damage Inflicted 7811 | 107 120 22 . 54 4412 378 1268 431 1019 Guns 1984 | 107 120 22 . . 1333 33 231 94 44 Cannons 1465 | . . . . . 759 . 63 287 356 Explosions 2238 | . . . . . 1145 119 974 . . Melee 2119 | . . . . 54 1175 226 . 50 614 Ramming 5 | . . . . . . . . . 5 Kinetic 1226 | 46 34 10 . . 778 33 231 94 . Thermal 2257 | 61 86 12 . . 1421 . 63 258 356 Explosive 1366 | . . . . . 273 119 974 . . Electromagnetic 838 | . . . . . 765 . . 29 44 Impact 347 | . . . . 54 293 . . . . Slashing 1772 | . . . . . 882 226 . 50 614 Piercing . | . . . . . . . . . . Highest Corruption 41 | . . . . . 8 3 36 41 . Average Corruption 11 | . . . . . 7 1 21 36 . Corruption Purged . | . . . . . . . . . . Corruption Blocked 2 | . . . . . . . . . 2 Effects 133 | . . . . . 76 8 16 33 . Message Errors 25 | . . . . . 15 2 4 4 . Matter Fused 34 | . . . . . 21 2 4 7 . Heat Flow Errors 23 | . . . . . 11 1 1 10 . Energy Discharges 13 | . . . . . 10 1 . 2 . Parts Rejected 2 | . . . . . 1 . 1 . . Parts Fused 3 | . . . . . 2 . 1 . . Data Loss (minor) 15 | . . . . . 5 2 2 6 . Data Loss (major) 10 | . . . . . 7 . 2 1 . Misfires 2 | . . . . . 2 . . . . Misdirections 2 | . . . . . . . . 2 . Weapon Failures 4 | . . . . . 2 . 1 1 . Overload Shots . | . . . . . . . . . . Overflow Damage 310 | . . . . 19 233 50 . 8 . Projectiles 8 | . . . . . . . . 8 . Explosions 13 | . . . . . 13 . . . . Melee 289 | . . . . 19 220 50 . . . Knockbacks 4 | . . . . 1 3 . . . . Impact 3 | . . . . 1 2 . . . . Kinetic 1 | . . . . . 1 . . . . Secondary . | . . . . . . . . . . Self-Inflicted Damage 85 | . . . . . 48 35 . . 2 Shots 2 | . . . . . 1 1 . . . Rammed 2 | . . . . . . . . . 2 Targets Rammed 2 | . . . . . . . . . 2 Kicked . | . . . . . . . . . . Crushed . | . . . . . . . . . . Highest Temperature 296 | 45 48 . . . 296 190 142 262 141 Average Temperature 56 | 20 13 . . . 58 105 46 73 57 Received Heat Transfer 1974 | . 225 6 . . 1130 18 . 219 376 Siege Activations . | . . . . . . . . . . Martial Activations . | . . . . . . . . . . Shielding Activations . | . . . . . . . . . . Robots Disrupted . | . . . . . . . . . . Combat Hostiles . | . . . . . . . . . . Robots Corrupted 1 | . . . . 1 . . . . . Combat Hostiles . | . . . . . . . . . . Parts Fried 8 | . . . . 5 3 . . . . Impact Corruptions 3 | . . . . 2 1 . . . . Robots Melted 1 | . . . . . . . . . 1 Combat Hostiles 1 | . . . . . . . . . 1 Parts Melted 9 | 2 . . . . 7 . . . . Heat Transferred 4043 | 259 259 37 . . 2488 . 100 350 550 Parts Sabotaged . | . . . . . . . . . . Parts Stolen . | . . . . . . . . . . Parts Stripped . | . . . . . . . . . . Power Chain Reactions 4 | . . . . . 4 . . . . Alert | -11 -10 -10 -9 -6 -6 -5 -5 -5 -4 ------- Run | Yrd Mat Sub Scr Fac Ext Fac Was Fac Fac Maximum Alert Level 2 | . . . . . 2 1 . . . Low Security (%) 85 | 100 100 . . 100 87 27 100 100 100 Level 1 9 | . . . . . 1 72 . . . Level 2 4 | . . . . . 10 . . . . Level 3 . | . . . . . . . . . . Level 4 . | . . . . . . . . . . Level 5 . | . . . . . . . . . . High Security . | . . . . . . . . . . Max Security . | . . . . . . . . . . Peak Influence 656 | 10 95 . . 21 656 337 120 79 60 Initial 317 | . . . . . 1 317 110 . . Average 97 | 1 32 . . 2 131 229 46 25 11 Influence Increases 2584 | 20 105 . . 42 1529 308 72 277 231 Destroy 0b10 Robot/C 1140 | . 40 . . . 780 100 . 100 120 Destroy 0b10 Robot/NC 120 | 20 10 . . 5 60 5 . 10 10 Destroy Leader 188 | . 10 . . . 114 20 . 24 20 Allied During Kill 616 | . . . . . 431 125 . 60 . Successful Hack 98 | . . . . 35 49 14 . . . Disable Machine 120 | . . . . . 45 . . 75 . Destroy Structure 182 | . . . . 2 50 44 72 8 6 Lose Combat Pursuer 120 | . 45 . . . . . . . 75 Influence Decreases 2533 | 20 105 . . 38 885 641 387 277 180 Entered New Map 539 | . . . . . 3 331 205 . . Time Decay 1497 | 20 105 . . 38 590 310 122 177 135 Lost Part 211 | . . . . . 114 . . 52 45 Lost Ally 136 | . . . . . 28 . 60 48 . Purge Threat 150 | . . . . . 150 . . . . Squads Dispatched 16 | . . . . . 6 4 . 2 4 Investigation 7 | . . . . . 3 3 . . 1 Extermination 3 | . . . . . . 1 . 1 1 Reinforcement 6 | . . . . . 3 . . 1 2 Assault . | . . . . . . . . . . Garrison . | . . . . . . . . . . Intercept . | . . . . . . . . . . Searches Triggered . | . . . . . . . . . . Construction Impeded 3 | . . . . . 2 . . 1 . Haulers Reinforced . | . . . . . . . . . . Active Scanning Responses . | . . . . . . . . . . Cargo Convoy Interrupts . | . . . . . . . . . . Stealth | -11 -10 -10 -9 -6 -6 -5 -5 -5 -4 --------- Run | Yrd Mat Sub Scr Fac Ext Fac Was Fac Fac Distress Signals 5 | . 1 . . . 3 . . . 1 Communications Jammed . | . . . . . . . . . . Distress Signals . | . . . . . . . . . . Times Spotted 102 | . 8 2 . 1 40 5 6 15 25 Peak Tracking Total 11 | . 6 2 . 1 6 2 3 9 11 Tactical Retreats 3 | . 1 . . . . . . . 2 Traps | -11 -10 -10 -9 -6 -6 -5 -5 -5 -4 ------- Run | Yrd Mat Sub Scr Fac Ext Fac Was Fac Fac Traps Triggered 9 | . 1 . . . 7 1 . . . Indirectly . | . . . . . . . . . . Trap Hack Attempts . | . . . . . . . . . . Triggered . | . . . . . . . . . . Disarmed . | . . . . . . . . . . Reprogrammed . | . . . . . . . . . . Reused . | . . . . . . . . . . Traps Extracted . | . . . . . . . . . . Installed . | . . . . . . . . . . Triggered . | . . . . . . . . . . Machines | -11 -10 -10 -9 -6 -6 -5 -5 -5 -4 ---------- Run | Yrd Mat Sub Scr Fac Ext Fac Was Fac Fac Machines Disabled 10 | . . . . . 5 . . 5 . Max in Single Turn 2 | . . . . . 2 . . 1 . Garrison Access 3 | . . . . . . 1 . 1 1 Energy Cycler 2 | . . . . . 2 . . . . Machines Repaired . | . . . . . . . . . . Machines Dismantled . | . . . . . . . . . . Machines Sabotaged . | . . . . . . . . . . Overloaded Fab Kills . | . . . . . . . . . . Hacking | -11 -10 -10 -9 -6 -6 -5 -5 -5 -4 --------- Run | Yrd Mat Sub Scr Fac Ext Fac Was Fac Fac Machines Accessed 30 | . . 1 5 4 9 7 . 2 2 Terminals 18 | . . . . 4 9 5 . . . Fabricators . | . . . . . . . . . . Repair Stations . | . . . . . . . . . . Recycling Units 3 | . . . . . . 1 . 1 1 Scanalyzers . | . . . . . . . . . . Garrison Access 3 | . . . . . . 1 . 1 1 Total Hacks 73 | . . 4 18 8 20 15 . 2 6 Successful 38 | . . 4 18 2 8 3 . 1 2 Failed 35 | . . . . 6 12 12 . 1 4 Catastrophic 8 | . . . . 1 2 4 . 1 . Database Lockouts . | . . . . . . . . . . Manual 16 | . . . . 4 . 11 . 1 . Terminals 39 | . . . . 8 20 11 . . . Fabricators . | . . . . . . . . . . Repair Stations . | . . . . . . . . . . Recycling Units 8 | . . . . . . 3 . 1 4 Scanalyzers . | . . . . . . . . . . Garrison Access 4 | . . . . . . 1 . 1 2 Terminal Hacks 31 | . . 4 18 1 8 . . . . Record 18 | . . 4 13 1 . . . . . Robot Analysis 5 | . . . 5 . . . . . . Open Door 7 | . . . . . 7 . . . . Unreport Threat 1 | . . . . . 1 . . . . Fabricator Hacks . | . . . . . . . . . . Repair Station Hacks . | . . . . . . . . . . Recycling Unit Hacks 1 | . . . . . . . . . 1 Retrieve Components 1 | . . . . . . . . . 1 Scanalyzer . | . . . . . . . . . . Garrison Access Hacks 3 | . . . . . . 1 . 1 1 Seal Access 3 | . . . . . . 1 . 1 1 Unauthorized Hacks 3 | . . . . 1 . 2 . . . Terminals 3 | . . . . 1 . 2 . . . Botnet 3 | . . . . 1 . 2 . . . Fabricators . | . . . . . . . . . . Repair Stations . | . . . . . . . . . . Recycling Units . | . . . . . . . . . . Scanalyzers . | . . . . . . . . . . Garrison Access . | . . . . . . . . . . Data Cores Recovered 1 | . . . . 1 . . . . . Used . | . . . . . . . . . . Hacking Detections 17 | . . . . 4 5 6 . 1 1 Full Trace Events 5 | . . . . . 1 3 . . 1 Feedback Events 1 | . . . . . . 1 . . . Corruption 1 | . . . . . . 1 . . . Feedback Blocked . | . . . . . . . . . . Robot Schematics Acquired . | . . . . . . . . . . Robots Built . | . . . . . . . . . . Authchips . | . . . . . . . . . . Time . | . . . . . . . . . . Total Robot Build Rating . | . . . . . . . . . . Part Schematics Acquired . | . . . . . . . . . . Parts Built . | . . . . . . . . . . Authchips . | . . . . . . . . . . Time . | . . . . . . . . . . Total Part Build Rating . | . . . . . . . . . . Part Studies Acquired . | . . . . . . . . . . Parts Repaired . | . . . . . . . . . . Time . | . . . . . . . . . . Parts Recycled . | . . . . . . . . . . Recycled Matter . | . . . . . . . . . . Retrieved Matter . | . . . . . . . . . . Retrieved Components 3 | . . . . . . . . . 3 Parts Scanalyzed . | . . . . . . . . . . Part Schematics Acquired . | . . . . . . . . . . Parts Damaged . | . . . . . . . . . . Bothacking | -11 -10 -10 -9 -6 -6 -5 -5 -5 -4 ------------ Run | Yrd Mat Sub Scr Fac Ext Fac Was Fac Fac Used RIF Installer . | . . . . . . . . . . Robots Hacked 6 | . . . . . 2 4 . . . Non-combat 5 | . . . . . 1 4 . . . Combat 1 | . . . . . 1 . . . . Robot Hacks Applied 9 | . . . . . 3 6 . . . parse_system 4 | . . . . . 1 3 . . . no_distress 1 | . . . . . . 1 . . . find_recycling 2 | . . . . . . 2 . . . check_alert 2 | . . . . . 2 . . . . Relay Couplers Released . | . . . . . . . . . . Fabnet Peak Effective % . | . . . . . . . . . . Robots Rewired 14 | . . . . . 14 . . . . Allies Hacked 1 | . . . . . . 1 . . . Hacks Repelled . | . . . . . . . . . . Allies | -11 -10 -10 -9 -6 -6 -5 -5 -5 -4 -------- Run | Yrd Mat Sub Scr Fac Ext Fac Was Fac Fac Total Allies 25 | . . . . . 24 . 1 . . Largest Group 20 | . . . . . 20 19 11 10 . Highest-Rated Group 731 | . . . . . 731 702 351 320 . Highest-Rated Ally 159 | . . . . . 159 159 39 39 . Initial UFD Resources 31 | . . . . 24 24 28 28 28 31 Total Orders . | . . . . . . . . . . Ally Attacks 316 | . . . . . 138 32 75 71 . Total Damage 5488 | . . . . . 2777 560 1310 841 . Kills 38 | . . . . . 25 3 4 6 . Allies Corrupted 8 | . . . . . . . 3 5 . Allies Melted . | . . . . . . . . . . Intel | -11 -10 -10 -9 -6 -6 -5 -5 -5 -4 ------- Run | Yrd Mat Sub Scr Fac Ext Fac Was Fac Fac Active Infowar (turns) 2514 | 87 310 461 38 363 650 . . 108 497 Traps 605 | . . . . . . . . 108 497 Seismic 1909 | 87 310 461 38 363 650 . . . . Robot Analysis Total 5 | . . . 5 . . . . . . Derelict Logs Recovered 2 | . . 2 . . . . . . . Drone Launches . | . . . . . . . . . . Drone Recoveries . | . . . . . . . . . . Exploration | -11 -10 -10 -9 -6 -6 -5 -5 -5 -4 ------------- Run | Yrd Mat Sub Scr Fac Ext Fac Was Fac Fac Turns Passed 9409 | 216 310 461 3224 367 2677 691 361 529 573 Spaces Moved 4740 | 114 174 280 1383 218 1308 385 180 298 400 Core 167 | 1 . . . . . . . . 166 Treads 596 | 113 174 280 29 . . . . . . Legs . | . . . . . . . . . . Wheels 3977 | . . . 1354 218 1308 385 180 298 234 Hover . | . . . . . . . . . . Flight . | . . . . . . . . . . Fastest Speed 50 | 50 160 160 160 160 152 171 171 110 50 Average Speed 181 | 159 160 160 230 160 169 171 171 163 119 Slowest Speed 560 | 160 160 160 560 160 176 171 171 171 215 Overloaded Moves . | . . . . . . . . . . Propulsion Burnouts . | . . . . . . . . . . Robots Hopped . | . . . . . . . . . . Potential Cave-ins . | . . . . . . . . . . Cave-ins Triggered . | . . . . . . . . . . Exploration Rate (%) 35 | 4 32 23 80 5 87 9 86 14 12 Regions Visited 9 Branch Regions 3 Pre-discovered Areas 2 | . . 2 . . . . . . . Known Exits Taken . | . . . . . . . . . . Unknown Exits Taken 7 | 1 1 1 1 1 1 . . 1 . Scrap Searched 6 | . . . 6 . . . . . . Spaces Dug 4 | . . . . 2 . . . . 2 Terrain Destroyed 141 | . . . . 2 50 23 62 1 3 Melee 4 | . . . . 2 . . . . 2 Projectile 5 | . . . . . 3 . . 1 1 AOE 132 | . . . . . 47 23 62 . . Terrain Rammed . | . . . . . . . . . . Walls Destroyed . | . . . . . . . . . . Machines Disabled . | . . . . . . . . . . Actions | -11 -10 -10 -9 -6 -6 -5 -5 -5 -4 --------- Run | Yrd Mat Sub Scr Fac Ext Fac Was Fac Fac Total 5234 | 134 189 289 1420 231 1594 405 208 315 449 Wait 88 | . 7 6 . . 63 1 11 . . Move 4732 | 113 173 279 1382 217 1307 385 179 297 400 Hop . | . . . . . . . . . . Pick Up 54 | 4 . 2 27 2 10 2 4 1 2 Fast Attach 25 | 7 1 . . . 5 . 1 3 8 Attach 26 | 1 . . 2 7 12 1 . 1 2 Detach 6 | 1 . . 1 . 2 . . . 2 Swap 13 | 1 . . 3 2 4 1 1 1 . Drop 4 | 1 . . 3 . . . . . . Fire 122 | 6 8 2 . . 70 2 12 10 12 Melee 106 | . . . 2 3 65 13 . 2 21 Ram 2 | . . . . . . . . . 2 Kick . | . . . . . . . . . . Crush . | . . . . . . . . . . Escape Stasis 56 | . . . . . 56 . . . . Rewire . | . . . . . . . . . . Trap . | . . . . . . . . . . Miscellaneous . | . . . . . . . . . . Route ------- -11/Scrapyard -10/Materials (discovered 3 exits: [*Mat] / [*Min] / *Sub) -10/Subcaves (discovered 2 exits: [*Mat] / *Scr) -9/Scraptown (discovered 2 exits: *Fac x2) -6/Factory -6/Extension (discovered 3 exits: *Fac x2 / [*Cet]) -5/Factory -5/Waste -5/Factory -4/Factory History --------- Turn | Location | Event 16 | -11/Scrapyard | Discovered new exit (range 14) 217 | -11/Scrapyard | Entered Materials 218 | -10/Materials | Met a group of wandering Federalists 313 | -10/Materials | Build established: Mutant 404 | -10/Materials | Discovered new exit (range 10) 500 | -10/Materials | Discovered new exit (range 14) 522 | -10/Materials | Discovered new exit (range 5) 527 | -10/Materials | Entered Subcaves 528 | -10/Subcaves | Continued accompanying wandering Federalists (4) 537 | -10/Subcaves | Learned location of Zion (-6) 569 | -10/Subcaves | Discovered new exit (range 16) 802 | -10/Subcaves | Wandering Federalist uncovered a shortcut to Scraptown 886 | -10/Subcaves | Learned 8 Materials zone layouts 908 | -10/Subcaves | Visited Clippyterm 913 | -10/Subcaves | Learned location of Deep Caves (-6) 988 | -10/Subcaves | Entered Scraptown 1332 | -9/Scraptown | Build established: Hauler-Mutant 1495 | -9/Scraptown | Discovered new exit (range 11) 1735 | -9/Scraptown | Visited Symbiants 1792 | -9/Scraptown | Visited Awakened 1926 | -9/Scraptown | Visited Junk Repository 2053 | -9/Scraptown | Visited UFD Registry 2108 | -9/Scraptown | Visited IN-MT5's Study 2184 | -9/Scraptown | Registered with UFD as "Ionstep" 2279 | -9/Scraptown | Visited Modified Component R&D 2412 | -9/Scraptown | Visited Analyses Database 2513 | -9/Scraptown | Visited Curators Association 2564 | -9/Scraptown | Visited DA-N13 Charitable Foundation 2601 | -9/Scraptown | Found DCF Scrap (31 items) 2745 | -9/Scraptown | Visited Scrapoid Pod Storage 2761 | -9/Scraptown | Found Scrapoid Pod 2808 | -9/Scraptown | Visited Scrap Suit Storage 2826 | -9/Scraptown | Found Scrap Suit 3404 | -9/Scraptown | Discovered new exit (range 5) 3558 | -9/Scraptown | Visited Abandonware Association 3632 | -9/Scraptown | Learned abandonware demo "SHUTEYE.EXE" 3632 | -9/Scraptown | Learned abandonware demo "ERRANTS.EXE" 3701 | -9/Scraptown | Visited Supply Room 3787 | -9/Scraptown | Visited LU-1G1's Boring Crew 4019 | -9/Scraptown | Met Optimus 4019 | -9/Scraptown | Accepted into 0bPrime 4212 | -9/Scraptown | Entered Factory 4212 | -6/Factory | Evolved 8 slots: Propulsion x2, Utility x5, Weapon x1 4530 | -6/Factory | Discovered new exit (range 6) 4579 | -6/Factory | Entered Extension 4910 | -6/Extension | Lost 3 parts (1n1u1w) 4973 | -6/Extension | Rescued A7 5004 | -6/Extension | Rescued a captive Derelict 5096 | -6/Extension | Rescued a captive Derelict 5096 | -6/Extension | Rescued a captive Derelict 5142 | -6/Extension | Rescued a captive Derelict 5254 | -6/Extension | Lost 4 allies 5661 | -6/Extension | Spotted B-75 Beast 5674 | -6/Extension | Spotted B-75 Beast 5678 | -6/Extension | Allies destroyed B-75 Beast 5721 | -6/Extension | Allies destroyed B-75 Beast 5744 | -6/Extension | Lost 6 parts (1p1n2u2w) 5781 | -6/Extension | Discovered new exit (range 3) 5959 | -6/Extension | Rescued a captive Derelict 5959 | -6/Extension | Rescued a captive Derelict 6027 | -6/Extension | Rescued a captive Derelict 6028 | -6/Extension | Rescued a captive Derelict 6054 | -6/Extension | Energy Cycler disabled 6054 | -6/Extension | Rescued a captive Derelict 6057 | -6/Extension | Rescued a captive Derelict 6789 | -6/Extension | Build established: Commander-Mutant 7175 | -6/Extension | Discovered new exit (range 10) 7176 | -6/Extension | Discovered new exit (range 7) 7256 | -6/Extension | Entered Factory 7256 | -5/Factory | Accompanied by 19 allies (A7) 7256 | -5/Factory | Evolved 2 slots: Utility x2 7334 | -5/Factory | Lost 3 allies 7947 | -5/Factory | Sucked down chute 7947 | -5/Factory | Entered Waste 7948 | -5/Waste | Met a frightened Derelict 7962 | -5/Waste | EMP discharged 7962 | -5/Waste | System corruption reached 10% 7970 | -5/Waste | Spotted C-40 Crusher 7976 | -5/Waste | Destroyed C-40 Crusher 8003 | -5/Waste | Spotted C-40 Crusher 8011 | -5/Waste | Allies destroyed C-40 Crusher 8020 | -5/Waste | Spotted C-40 Crusher 8031 | -5/Waste | Allies destroyed C-40 Crusher 8034 | -5/Waste | Spotted C-40 Crusher 8036 | -5/Waste | Spotted C-40 Crusher 8043 | -5/Waste | Spotted C-40 Crusher 8045 | -5/Waste | Destroyed C-40 Crusher 8058 | -5/Waste | Allies destroyed C-40 Crusher 8061 | -5/Waste | Allies destroyed C-40 Crusher 8062 | -5/Waste | EMP discharged 8069 | -5/Waste | Found Damper Plating 8127 | -5/Waste | 2 allies followed down the chute 8162 | -5/Waste | EMP discharged 8187 | -5/Waste | 13 allies followed down the chute 8262 | -5/Waste | EMP discharged 8262 | -5/Waste | System corruption reached 30% 8275 | -5/Waste | Discovered new exit (range 13) 8308 | -5/Waste | Entered Factory 8308 | -5/Factory | Accompanied by 10 allies 8630 | -5/Factory | Lost 4 allies 8802 | -5/Factory | Lost 6 allies 8823 | -5/Factory | Discovered new exit (range 10) 8827 | -5/Factory | Spotted B-75 Beast 8837 | -5/Factory | Entered another Factory area 8837 | -4/Factory | Evolved 2 slots: Utility x2 8867 | -4/Factory | Lost 11 parts (3n5u3w) 9135 | -4/Factory | Build established: Mutant 9365 | -4/Factory | Lost 11 parts (2n6u3w) 9385 | -4/Factory | Core integrity fell below 50% 9406 | -4/Factory | Core integrity fell below 20% 9410 | -4/Factory | Destroyed by G-67 Veteran with Field Laser Last Messages --------------- 09312_ Wheel destroyed. 09312_ S-27 Virus destroyed. 09319_ Manufacturing Mainframe disabled. 09322_ Adv. Plasma Cannon destroyed. 09323_ Slammed into S-27 Virus. 09330_ Microactuators destroyed. 09334_ Imp. Trap Scanner destroyed. 09370_ O-32 Director: "IFF HANDSHAKE FAILED. SECURING TERMINAL." 09388_ ALERT: Hostiles spotted, dispatching reinforcements to Terminal F011. 09391_ ALERT: Potential suspicious activity detected, Programmers report to Factory Zone 1B. 09401_ Imp. Corruption Screen intercepted 1% system corruption. 09404_ G-67 Veteran suffers critical hit (Burn). 09406_ ALERT: Security rotation in progress. 09409_ Imp. Corruption Screen intercepted 1% system corruption. Map ----- +----------------------------------------------------+ | ?????????????????????????????????????????????????? | | ?????????????????????????????????????????????????? | | ?????????????????????????????????????????????????? | | ?????????????????????????????????????????????????? | | ?????????????????????????????????????????????????? | | ?????????????????????????????????????????????????? | | ###??????????????????????????????????????????????? | | #########??????????????????????????????????????? | | # ##########+#############+############### | | ! # | | ! # | | / " | | # * | | # | | # ######################################## | | ##### ########?????????????????????????????????? | | ????# #? ?????????????????????????????????? | | ????# ## "???#?????????????????????????????? | | ????# ## " "" #?????????????????????????????? | | ???## ## "" """ #?????????????????????????????? | | ? /## ## G """ #?????????????????????????????? | | ## #? "" """ ??????????????????????????????? | | ""## #??" ??????????????????????????????? | | ""## #??? ????????????????????????????????? | | ""## ######/#############+#####????????????###+ | | T# s g @ u ??^ | | ""# ss ? | | ""# s ?? | | ?""# ??? | | ???# A ???? | | ???# #####+#############+##########????####### | | #### #?? ??????????????????????????????????? | | #?# ???????????????????????????????????? | | #?# ????????????????????????????????????? | | #?# ????????????????????????????????????? | | #?#?????????????????????????????????????? | | #???????????????????????????????????????? | | +#########???????????????????????????????????????? | | ????????????????????????????????????????????????? | | ?????????????????????????????????????????????????? | | ?????????????????????????????????????????????????? | | ?????????????????????????????????????????????????? | | ?????????????????????????????????????????????????? | | ?????????????????????????????????????????????????? | | ?????????????????????????????????????????????????? | | ?????????????????????????????????????????????????? | | ?????????????????????????????????????????????????# | | ???????????????????????????????????????????? #### | | ??????????????????????????????????????????? | | ??????????????????????????????????????????? | +----------------------------------------------------+ Best States ------------- Heat Dissipation 62 Energy Generation 19 Energy Capacity 315 Matter Stores 300 Matter Capacity 300 Sight Range 16 Terrain Scan Density 10 Corruption Block 15 Armor Coverage 1825 Resistance: KI 30 Resistance: TH 15 Resistance: EM 90 Weapon Shielding 66 Melee Speed Boost 20 Evasion (%) 50 Targeting Accuracy 6 Recoil Reduction 2 Item Schematics ----------------- None Robot Schematics ------------------ None Fabricated ------------ Nothing Repaired ---------- Nothing Studied --------- None Alien Tech Used ----------------- None Achievements -------------- Armchair Analyst Explosive Keycard Packrat We Are Legion Challenges ------------ None Game ------ Seed OvertunedGunShearcannon Manual? 0 Play Time 00:55:56 Cumulative 56.9 hours Start 2026.03.08 @ 20:36:17 End 2026.03.08 @ 21:30:50 Sessions 1 Manual Loads 0 Difficulty Rogue Special Mode None Game No. 133 Rogue 133 Adventurer 0 Explorer 0 Win Type - Total 0 Types 0/0/0/0/0/0/0/0/0/0 Lore% 33 Gallery% 39 Achievement% 31 Wizard Run 0 Options --------- Layout 2 ASCII 0 Keyboard 1 Movement Arrows Keybinds 0 Fullscreen 1 Font 24/Smallcaps Map View 50x44 Zoom Use 0% Tactical HUD 1 Map Filters NONE Filters NONE Steam 1 RUN: 46a723db-9ea4-4f7d-b6da-e6fc69f5e8ff